fUSD/lending_fUSD_20250227
["ID","MTS","AMOUNT","RATE_DAILY","PERIOD"]
[354695461,1740624652973,-500.0,0.00049315,120]
[354695462,1740624652983,-500.0,0.00049315,120]
[354695463,1740624652993,-500.0,0.00049315,120]
[354695464,1740624653002,-500.0,0.00049315,120]
[354695465,1740624653011,-500.0,0.00049315,120]
[354695466,1740624653020,-500.0,0.00049315,120]
[354695467,1740624653029,-500.0,0.00049315,120]
[354695468,1740624653038,-500.0,0.00049315,120]
[354695469,1740624653048,-500.0,0.00049315,120]
[354695470,1740624653057,-500.0,0.00049315,120]
[354695471,1740624653066,-500.0,0.00049315,120]
[354695472,1740624653075,-500.0,0.00049315,120]
[354695473,1740624653084,-500.0,0.00049315,120]
[354695474,1740624653093,-500.0,0.00049315,120]
[354695475,1740624653102,-151.0,0.00049315,14]
[354695476,1740624653111,-226.834739,0.00049315,14]
[354695477,1740624653120,-500.0,0.00049315,120]
[354695478,1740624653129,-646.38399085,0.00049315,120]
[354695479,1740624653138,-500.0,0.00049315,120]
[354695480,1740624653147,-500.0,0.00049315,120]
[354695481,1740624653156,-500.0,0.00049315,120]
[354695482,1740624653165,-500.0,0.00049315,120]
[354695483,1740624653175,-500.0,0.00049315,120]
[354695484,1740624653185,-500.0,0.00049315,120]
[354695485,1740624653195,-500.0,0.00049315,120]
[354695486,1740624653205,-500.0,0.00049315,120]
[354695487,1740624653214,-1146.12330307,0.00049315,120]
[354695488,1740624653223,-500.0,0.00049315,120]
[354695489,1740624653232,-500.0,0.00049315,120]
[354695490,1740624653242,-500.0,0.00049315,120]
[354695491,1740624653354,-500.0,0.00049315,120]
[354695492,1740624653364,-500.0,0.00049315,120]
[354695493,1740624653373,-500.0,0.00049315,120]
[354695494,1740624653382,-500.0,0.00049315,120]
[354695495,1740624653391,-500.0,0.00049315,120]
[354695496,1740624653400,-500.0,0.00049315,120]
[354695497,1740624653410,-500.0,0.00049315,120]
[354695498,1740624653419,-500.0,0.00049315,120]
[354695499,1740624653428,-500.0,0.00049315,120]
[354695500,1740624653437,-405.36546521,0.00049315,120]
[354695501,1740624653447,-500.0,0.00049315,120]
[354695502,1740624653456,-500.0,0.00049315,120]
[354695503,1740624653465,-500.0,0.00049315,120]
[354695504,1740624653474,-500.0,0.00049315,120]
[354695505,1740624653483,-500.0,0.00049315,120]
[354695506,1740624653492,-500.0,0.00049315,120]
[354695507,1740624653501,-500.0,0.00049315,120]
[354695508,1740624653510,-500.0,0.00049315,120]
[354695509,1740624653519,-500.0,0.00049315,120]
[354695510,1740624653528,-500.0,0.00049315,120]
[354695511,1740624653537,-500.0,0.00049315,120]
[354695512,1740624653547,-500.0,0.00049315,120]
[354695513,1740624653556,-500.0,0.00049315,120]
[354695514,1740624653565,-500.0,0.00049315,120]
[354695515,1740624653574,-500.0,0.00049315,120]
[354695516,1740624653583,-500.0,0.00049315,120]
[354695517,1740624653592,-500.0,0.00049315,120]
[354695518,1740624653602,-500.0,0.00049315,120]
[354695519,1740624653616,-500.0,0.00049315,120]
[354695520,1740624653626,-500.0,0.00049315,120]
[354695521,1740624653636,-4100.95,0.00049315,120]
[354695522,1740624653647,-151.0,0.00049315,14]
[354695523,1740624653656,-271.3236,0.00049315,14]
[354695524,1740624653665,-500.0,0.00049315,120]
[354695525,1740624653674,-500.0,0.00049315,120]
[354695526,1740624653683,-500.0,0.00049315,120]
[354695527,1740624653694,-500.0,0.00049315,120]
[354695528,1740624653703,-500.0,0.00049315,120]
[354695529,1740624653712,-500.0,0.00049315,120]
[354695530,1740624653722,-500.0,0.00049315,120]
[354695531,1740624653731,-500.0,0.00049315,120]
[354695532,1740624653740,-500.0,0.00049315,120]
[354695533,1740624653749,-500.0,0.00049315,120]
[354695534,1740624653759,-500.0,0.00049315,120]
[354695535,1740624653768,-482.05448398,0.00049315,120]
[354695536,1740624653779,-500.0,0.00049315,120]
[354695537,1740624653788,-500.0,0.00049315,120]
[354695538,1740624653797,-500.0,0.00049315,120]
[354695539,1740624653806,-500.0,0.00049315,120]
[354695540,1740624653815,-500.0,0.00049315,120]
[354695541,1740624653824,-486.27451237,0.00049315,120]
[354695542,1740624653834,-500.0,0.00049315,120]
[354695543,1740624653844,-500.0,0.00049315,120]
[354695544,1740624653853,-500.0,0.00049315,120]
[354695545,1740624653862,-500.0,0.00049315,120]
[354695546,1740624653871,-500.0,0.00049315,120]
[354695547,1740624653880,-500.0,0.00049315,120]
[354695548,1740624653889,-500.0,0.00049315,120]
[354695549,1740624653898,-500.0,0.00049315,120]
[354695550,1740624653906,-500.0,0.00049315,120]
[354695551,1740624653915,-500.0,0.00049315,120]
[354695552,1740624653924,-586.77951638,0.00049315,120]
[354695553,1740624653933,-500.0,0.00049315,120]
[354695554,1740624653942,-500.0,0.00049315,120]
[354695555,1740624653951,-500.0,0.00049315,120]
[354695556,1740624653960,-500.0,0.00049315,30]
[354695557,1740624653969,-500.0,0.00049315,120]
[354695558,1740624653979,-500.0,0.00049315,120]
[354695559,1740624653989,-500.0,0.00049315,120]
[354695560,1740624653999,-500.0,0.00049315,120]
[354695561,1740624654009,-500.0,0.00049315,120]
[354695562,1740624654018,-500.0,0.00049315,120]
[354695563,1740624654028,-152.986649,0.00049315,14]
[354695564,1740624654037,-500.0,0.00049315,120]
[354695565,1740624654047,-500.0,0.00049315,120]
[354695566,1740624654056,-582.05617997,0.00049315,120]
[354695567,1740624654065,-500.0,0.00049315,120]
[354695568,1740624654074,-546.33640164,0.00049315,120]
[354695569,1740624654083,-500.0,0.00049315,120]
[354695570,1740624654092,-500.0,0.00049315,120]
[354695571,1740624654102,-500.0,0.00049315,120]
[354695572,1740624654110,-500.0,0.00049315,120]
[354695573,1740624654119,-500.0,0.00049315,120]
[354695574,1740624654128,-151.0,0.00049315,14]
[354695575,1740624654137,-500.0,0.00049315,120]
[354695576,1740624654146,-500.0,0.00049315,120]
[354695577,1740624654155,-151.0,0.00049315,14]
[354695578,1740624654164,-500.0,0.00049315,120]
[354695579,1740624654173,-500.0,0.00049315,120]
[354695580,1740624654182,-500.0,0.00049315,7]
[354695581,1740624654191,-500.0,0.00049315,120]
[354695582,1740624654200,-500.0,0.00049315,40]
[354695583,1740624654210,-151.0,0.00049315,14]
[354695584,1740624654219,-500.0,0.00049315,120]
[354695585,1740624654228,-500.0,0.00049315,120]
[354695586,1740624654237,-151.0,0.00049315,14]
[354695587,1740624654246,-533.10681912,0.00049315,120]
[354695588,1740624654257,-500.0,0.00049315,120]
[354695589,1740624654266,-500.0,0.00049315,120]
[354695590,1740624654275,-500.0,0.00049315,120]
[354695591,1740624654284,-500.0,0.00049315,120]
[354695592,1740624654294,-500.0,0.00049315,120]
[354695593,1740624654305,-500.0,0.00049315,120]
[354695594,1740624654315,-500.0,0.00049315,120]
[354695595,1740624654328,-500.0,0.00049315,120]
[354695596,1740624654338,-500.0,0.00049315,120]
[354695597,1740624654350,-500.0,0.00049315,120]
[354695598,1740624654361,-339.95355183,0.00049315,120]
[354695599,1740624654371,-500.0,0.00049315,120]
[354695600,1740624654380,-500.0,0.00049315,120]
[354695601,1740624654391,-500.0,0.00049315,120]
[354695602,1740624654401,-151.0,0.00049315,14]
[354695603,1740624654412,-151.0,0.00049315,14]
[354695604,1740624654422,-151.0,0.00049315,14]
[354695605,1740624654432,-542.26,0.00049315,120]
[354695606,1740624654442,-500.0,0.00049315,120]
[354695607,1740624654453,-151.0,0.00049315,14]
[354695608,1740624654463,-500.0,0.00049315,120]
[354695609,1740624654473,-151.0,0.00049315,14]
[354695610,1740624654483,-151.0,0.00049315,14]
[354695611,1740624654492,-500.0,0.00049315,120]
[354695612,1740624654501,-249.424748,0.00049315,14]
[354695613,1740624654511,-500.0,0.00049315,120]
[354695614,1740624654520,-500.0,0.00049315,120]
[354695615,1740624654529,-500.0,0.00049315,120]
[354695616,1740624654538,-165.385666,0.00049315,14]
[354695617,1740624654549,-165.385666,0.00049315,14]
[354695618,1740624654560,-500.0,0.00049315,120]
[354695619,1740624654570,-500.0,0.00049315,120]
[354695620,1740624654579,-500.0,0.00049315,120]
[354695621,1740624654588,-165.385666,0.00049315,14]
[354695622,1740624654597,-165.385666,0.00049315,14]
[354695623,1740624654611,-500.0,0.00049315,120]
[354695624,1740624654621,-500.0,0.00049315,120]
[354695625,1740624654629,-500.0,0.00049315,120]
[354695626,1740624654638,-224.49480655,0.00049315,120]
[354695627,1740624654648,-500.0,0.00049315,120]
[354695628,1740624654657,-500.0,0.00049315,120]
[354695629,1740624654667,-500.0,0.00049315,120]
[354695630,1740624654676,-500.0,0.00049315,120]
[354695631,1740624654685,-615.52710214,0.00049315,120]
[354695632,1740624654696,-500.0,0.00049315,120]
[354695633,1740624654705,-500.0,0.00049315,120]
[354695634,1740624654715,-500.0,0.00049315,120]
[354695635,1740624654723,-500.0,0.00049315,120]
[354695636,1740624654732,-500.0,0.00049315,120]
[354695637,1740624654741,-500.0,0.00049315,120]
[354695638,1740624654751,-500.0,0.00049315,120]
[354695639,1740624654760,-500.0,0.00049315,120]
[354695640,1740624654769,-500.0,0.00049315,120]
[354695641,1740624654778,-500.0,0.00049315,120]
[354695642,1740624654788,-500.0,0.00049315,120]
[354695643,1740624654796,-500.0,0.00049315,100]
[354695644,1740624654806,-500.0,0.00049315,120]
[354695645,1740624654815,-151.0,0.00049315,14]
[354695646,1740624654823,-500.0,0.00049315,120]
[354695647,1740624654833,-500.0,0.00049315,120]
[354695648,1740624654843,-155.650989,0.00049315,14]
[354695649,1740624654852,-500.0,0.00049315,120]
[354695650,1740624654861,-500.0,0.00049315,120]
[354695651,1740624654870,-500.0,0.00049315,120]
[354695652,1740624654880,-506.93236799,0.00049315,120]
[354695653,1740624654889,-500.0,0.00049315,120]
[354695654,1740624654899,-516.6911797,0.00049315,120]
[354695655,1740624654908,-500.0,0.00049315,120]
[354695656,1740624654917,-500.0,0.00049315,120]
[354695657,1740624654926,-273.97156014,0.00049315,120]
[354695658,1740624654935,-500.0,0.00049315,120]
[354695659,1740624654944,-424.42057247,0.00049315,120]
[354695660,1740624654954,-151.0,0.00049315,14]
[354695661,1740624654963,-151.0,0.00049315,14]
[354695662,1740624654973,-500.0,0.00049315,120]
[354695663,1740624654982,-420.24855952,0.00049315,120]
[354695664,1740624654991,-500.0,0.00049315,120]
[354695665,1740624655003,-5000.0,0.00049315,120]
[354695666,1740624655012,-5000.0,0.00049315,120]
[354695667,1740624655021,-5000.0,0.00049315,120]
[354695668,1740624655030,-5000.0,0.00049315,120]
[354695669,1740624655040,-5000.0,0.00049315,120]
[354695670,1740624655048,-5000.0,0.00049315,120]
[354695671,1740624655058,-5000.0,0.00049315,120]
[354695672,1740624655067,-5000.0,0.00049315,120]
[354695673,1740624655076,-5000.0,0.00049315,120]
[354695674,1740624655084,-5000.0,0.00049315,120]
[354695675,1740624655094,-5000.0,0.00049315,120]
[354695676,1740624655104,-5000.0,0.00049315,120]
[354695677,1740624655115,-5000.0,0.00049315,120]
[354695678,1740624655124,-5000.0,0.00049315,120]
[354695679,1740624655133,-5000.0,0.00049315,120]
[354695680,1740624655142,-5000.0,0.00049315,120]
[354695681,1740624655151,-5000.0,0.00049315,120]
[354695682,1740624655160,-5000.0,0.00049315,120]
[354695683,1740624655170,-5000.0,0.00049315,120]
[354695684,1740624655179,-5104.168813,0.00049315,120]
[354695685,1740624655188,-184.7,0.00049323,120]
[354695686,1740624655197,-233.79194413,0.00049327,30]
[354695687,1740624655207,-150.0,0.0004933,30]
[354695688,1740624655217,-233.79194413,0.00049381,30]
[354695689,1740624655226,-150.0,0.00049384,30]
[354695690,1740624655235,-233.79194413,0.00049436,30]
[354695691,1740624655245,-150.0,0.00049447,30]
[354695692,1740624655254,-1318.62,0.00049452,120]
[354695693,1740624655263,-150.0,0.00049457,30]
[354695694,1740624655272,-233.79194413,0.0004949,30]
[354695695,1740624655281,-178.51151395,0.000495,120]
[354695696,1740624655291,-150.0,0.00049521,30]
[354695697,1740624655300,-150.0,0.0004953,30]
[354695698,1740624655309,-233.79194413,0.00049544,30]
[354695699,1740624655319,-150.0,0.00049565,30]
[354695700,1740624655328,-1612.731499,0.00049589,120]
[354695701,1740624655337,-1131.341063,0.00049589,120]
[354695702,1740624655346,-193.03928506,0.00049589,120]
[354695703,1740624655355,-500.0,0.00049589,120]
[354695704,1740624655364,-500.0,0.00049589,120]
[354695705,1740624655373,-508.95515113,0.00049589,120]
[354695706,1740624655382,-509.06436691,0.00049589,120]
[354695707,1740624655391,-377.09548787,0.00049589,120]
[354695708,1740624655400,-500.0,0.00049589,120]
[354695709,1740624655410,-500.0,0.00049589,120]
[354695710,1740624655419,-510.10012254,0.00049589,120]
[354695711,1740624655428,-509.21696157,0.00049589,120]
[354695712,1740624655437,-509.77475262,0.00049589,120]
[354695713,1740624655447,-509.1930198,0.00049589,120]
[354695714,1740624655456,-508.03146844,0.00049589,120]
[354695715,1740624655464,-630.54061102,0.00049589,120]
[354695716,1740624655474,-572.08911004,0.00049589,120]
[354695717,1740624655483,-519.34230812,0.00049589,120]
[354695718,1740624655492,-609.05521861,0.00049589,120]
[354695719,1740624655501,-415.6075809,0.00049589,120]
[354695720,1740624655510,-509.73891322,0.00049589,120]
[354695721,1740624655519,-519.09153783,0.00049589,120]
[354695722,1740624655528,-508.44073101,0.00049589,120]
[354695723,1740624655537,-571.45243741,0.00049589,120]
[354695724,1740624655546,-510.10486873,0.00049589,120]
[354695725,1740624655555,-520.22543591,0.00049589,120]
[354695726,1740624655564,-518.01736427,0.00049589,120]
[354695727,1740624655574,-152.581301,0.00049589,120]
[354695728,1740624655583,-474.68336478,0.00049589,120]
[354695729,1740624655592,-511.00713522,0.00049589,60]
[354695730,1740624655602,-621.30888246,0.00049589,120]
[354695731,1740624655612,-468.91045113,0.00049589,120]
[354695732,1740624655622,-507.789101,0.00049589,120]
[354695733,1740624655631,-508.81216414,0.00049589,120]
[354695734,1740624655640,-151.0,0.00049589,120]
[354695735,1740624655651,-512.22715126,0.00049589,120]
[354695736,1740624655660,-380.44589739,0.00049589,120]
[354695737,1740624655669,-439.80911199,0.00049589,120]
[354695738,1740624655679,-517.46525073,0.00049589,120]
[354695739,1740624655688,-151.0,0.00049589,120]
[354695740,1740624655697,-521.0759479,0.00049589,120]
[354695741,1740624655706,-498.47085246,0.00049589,120]
[354695742,1740624655716,-516.905538,0.00049589,120]
[354695743,1740624655725,-500.0,0.00049589,120]
[354695744,1740624655734,-509.02118078,0.00049589,120]
[354695745,1740624655743,-521.23229916,0.00049589,120]
[354695746,1740624655752,-253.06296,0.00049589,120]
[354695747,1740624655762,-507.03359956,0.00049589,120]
[354695748,1740624655771,-500.0,0.00049589,120]
[354695749,1740624655782,-514.56121328,0.00049589,120]
[354695750,1740624655790,-507.49242358,0.00049589,120]
[354695751,1740624655799,-500.39781079,0.00049589,120]
[354695752,1740624655808,-514.61386103,0.00049589,120]
[354695753,1740624655817,-508.31259544,0.00049589,120]
[354695754,1740624655826,-402.75348248,0.00049589,120]
[354695755,1740624655837,-508.53892912,0.00049589,120]
[354695756,1740624655846,-205.54359671,0.00049589,120]
[354695757,1740624655855,-516.28055105,0.00049589,120]
[354695758,1740624655864,-606.10750161,0.00049589,120]
[354695759,1740624655873,-538.32329453,0.00049589,120]
[354695760,1740624655882,-294.14449491,0.00049589,120]
[354695761,1740624655891,-549.6242515,0.00049589,120]
[354695762,1740624655900,-508.97435394,0.00049589,120]
[354695763,1740624655908,-510.41193898,0.00049589,120]
[354695764,1740624655918,-509.39198628,0.00049589,120]
[354695765,1740624655927,-151.0,0.00049589,120]
[354695766,1740624655935,-508.70287168,0.00049589,120]
[354695767,1740624655944,-500.0,0.00049589,120]
[354695768,1740624655953,-510.75227109,0.00049589,120]
[354695769,1740624655963,-509.34710365,0.00049589,120]
[354695770,1740624655972,-523.69129571,0.00049589,120]
[354695771,1740624655983,-500.0,0.00049589,120]
[354695772,1740624655991,-509.33041012,0.00049589,120]
[354695773,1740624656000,-500.0,0.00049589,120]
[354695774,1740624656098,-500.0,0.00049589,120]
[354695775,1740624656120,-500.0,0.00049589,120]
[354695776,1740624656130,-500.0,0.00049589,120]
[354695777,1740624656140,-508.94943358,0.00049589,120]
[354695778,1740624656150,-151.0,0.00049589,120]
[354695779,1740624656159,-500.0,0.00049589,120]
[354695780,1740624656168,-507.76574568,0.00049589,120]
[354695781,1740624656177,-221.96410091,0.00049589,120]
[354695782,1740624656186,-500.0,0.00049589,120]
[354695783,1740624656195,-500.0,0.00049589,120]
[354695784,1740624656205,-534.46142063,0.00049589,120]
[354695785,1740624656214,-500.0,0.00049589,120]
[354695786,1740624656223,-546.71585371,0.00049589,120]
[354695787,1740624656232,-500.0,0.00049589,120]
[354695788,1740624656241,-500.0,0.00049589,120]
[354695789,1740624656250,-500.0,0.00049589,120]
[354695790,1740624656260,-523.45781962,0.00049589,120]
[354695791,1740624656269,-500.0,0.00049589,120]
[354695792,1740624656278,-528.63086927,0.00049589,120]
[354695793,1740624656287,-517.02467215,0.00049589,120]
[354695794,1740624656296,-500.0,0.00049589,120]
[354695795,1740624656305,-500.0,0.00049589,120]
[354695796,1740624656314,-500.0,0.00049589,120]
[354695797,1740624656323,-151.0,0.00049589,120]
[354695798,1740624656332,-500.0,0.00049589,120]
[354695799,1740624656341,-500.0,0.00049589,120]
[354695800,1740624656350,-500.0,0.00049589,120]
[354695801,1740624656359,-538.97775086,0.00049589,120]
[354695802,1740624656368,-500.0,0.00049589,120]
[354695803,1740624656377,-523.38668807,0.00049589,120]
[354695804,1740624656386,-507.32632218,0.00049589,120]
[354695805,1740624656395,-509.4966934,0.00049589,120]
[354695806,1740624656404,-519.10656311,0.00049589,120]
[354695807,1740624656413,-500.0,0.00049589,120]
[354695808,1740624656422,-526.40555492,0.00049589,120]
[354695809,1740624656431,-543.64094331,0.00049589,120]
[354695810,1740624656440,-500.0,0.00049589,120]
[354695811,1740624656450,-512.87135894,0.00049589,120]
[354695812,1740624656459,-528.02157423,0.00049589,120]
[354695813,1740624656468,-500.0,0.00049589,120]
[354695814,1740624656477,-506.72133345,0.00049589,120]
[354695815,1740624656487,-520.56912739,0.00049589,30]
[354695816,1740624656496,-500.0,0.00049589,120]
[354695817,1740624656506,-337.50664841,0.00049589,120]
[354695818,1740624656516,-1318.62,0.00049589,120]
[354695819,1740624656527,-500.0,0.00049589,120]
[354695820,1740624656536,-500.0,0.00049589,120]
[354695821,1740624656545,-500.0,0.00049589,120]
[354695822,1740624656555,-500.0,0.00049589,120]
[354695823,1740624656564,-500.0,0.00049589,120]
[354695824,1740624656576,-500.0,0.00049589,120]
[354695825,1740624656593,-500.0,0.00049589,120]
[354695826,1740624656603,-513.04564589,0.00049589,120]
[354695827,1740624656618,-508.72592579,0.00049589,120]
[354695828,1740624656628,-500.0,0.00049589,120]
[354695829,1740624656637,-379.00184186,0.00049589,120]
[354695830,1740624656646,-500.0,0.00049589,120]
[354695831,1740624656655,-500.0,0.00049589,120]
[354695832,1740624656664,-542.73844082,0.00049589,120]
[354695833,1740624656674,-515.3693505,0.00049589,120]
[354695834,1740624656683,-615.78889528,0.00049589,120]
[354695835,1740624656693,-510.06617294,0.00049589,120]
[354695836,1740624656703,-509.5303561,0.00049589,120]
[354695837,1740624656714,-500.0,0.00049589,120]
[354695838,1740624656723,-518.938299,0.00049589,120]
[354695839,1740624656732,-504.76401477,0.00049589,120]
[354695840,1740624656741,-500.0,0.00049589,120]
[354695841,1740624656750,-151.0,0.00049589,120]
[354695842,1740624656759,-513.78686056,0.00049589,120]
[354695843,1740624656768,-500.0,0.00049589,7]
[354695844,1740624656778,-280.26594707,0.00049589,120]
[354695845,1740624656787,-548.10501336,0.00049589,120]
[354695846,1740624656798,-516.48075619,0.00049589,120]
[354695847,1740624656807,-500.0,0.00049589,120]
[354695848,1740624656816,-511.02619693,0.00049589,120]
[354695849,1740624656825,-542.7183006,0.00049589,120]
[354695850,1740624656835,-643.75730935,0.00049589,120]
[354695851,1740624656844,-500.0,0.00049589,120]
[354695852,1740624656853,-515.1372139,0.00049589,120]
[354695853,1740624656862,-500.0,0.00049589,120]
[354695854,1740624656871,-541.36975726,0.00049589,120]
[354695855,1740624656881,-628.68043766,0.00049589,120]
[354695856,1740624656890,-208.11974401,0.00049589,120]
[354695857,1740624656899,-500.0,0.00049589,120]
[354695858,1740624656908,-529.45744898,0.00049589,120]
[354695859,1740624656917,-500.0,0.00049589,120]
[354695860,1740624656926,-167.18931679,0.00049589,120]
[354695861,1740624656935,-500.0,0.00049589,120]
[354695862,1740624656944,-500.0,0.00049589,120]
[354695863,1740624656953,-500.0,0.00049589,120]
[354695864,1740624656962,-500.0,0.00049589,120]
[354695865,1740624656971,-393.7588726,0.00049589,120]
[354695866,1740624656980,-500.0,0.00049589,120]
[354695867,1740624656990,-500.0,0.00049589,120]
[354695868,1740624656999,-500.0,0.00049589,120]
[354695869,1740624657008,-500.0,0.00049589,120]
[354695870,1740624657017,-508.19550899,0.00049589,120]
[354695871,1740624657026,-500.0,0.00049589,120]
[354695872,1740624657035,-522.12576758,0.00049589,120]
[354695873,1740624657044,-248.79647982,0.00049589,120]
[354695874,1740624657053,-500.0,0.00049589,120]
[354695875,1740624657062,-500.0,0.00049589,120]
[354695876,1740624657071,-500.0,0.00049589,120]
[354695877,1740624657080,-518.25842492,0.00049589,120]
[354695878,1740624657089,-500.0,0.00049589,120]
[354695879,1740624657098,-500.0,0.00049589,120]
[354695880,1740624657107,-537.48863859,0.00049589,120]
[354695881,1740624657115,-500.0,0.00049589,120]
[354695882,1740624657124,-500.0,0.00049589,120]
[354695883,1740624657133,-500.0,0.00049589,120]
[354695884,1740624657142,-500.0,0.00049589,120]
[354695885,1740624657150,-500.0,0.00049589,120]
[354695886,1740624657159,-500.0,0.00049589,120]
[354695887,1740624657169,-500.0,0.00049589,120]
[354695888,1740624657177,-500.0,0.00049589,120]
[354695889,1740624657186,-515.9518777,0.00049589,120]
[354695890,1740624657196,-527.49895563,0.00049589,120]
[354695891,1740624657204,-500.0,0.00049589,120]
[354695892,1740624657213,-461.93271138,0.00049589,120]
[354695893,1740624657222,-198.15204785,0.00049589,120]
[354695894,1740624657231,-500.0,0.00049589,120]
[354695895,1740624657240,-500.0,0.00049589,120]
[354695896,1740624657249,-507.3089126,0.00049589,120]
[354695897,1740624657258,-151.0,0.00049589,120]
[354695898,1740624657266,-500.0,0.00049589,120]
[354695899,1740624657275,-545.1823922,0.00049589,120]
[354695900,1740624657285,-538.2734454,0.00049589,120]
[354695901,1740624657294,-500.0,0.00049589,120]
[354695902,1740624657303,-500.0,0.00049589,120]
[354695903,1740624657312,-300.0,0.00049589,120]
[354695904,1740624657321,-500.0,0.00049589,120]
[354695905,1740624657330,-500.0,0.00049589,120]
[354695906,1740624657340,-520.55010248,0.00049589,120]
[354695907,1740624657349,-151.0,0.00049589,120]
[354695908,1740624657359,-500.0,0.00049589,120]
[354695909,1740624657368,-500.0,0.00049589,120]
[354695910,1740624657378,-525.70003844,0.00049589,120]
[354695911,1740624657387,-500.0,0.00049589,120]
[354695912,1740624657398,-155.945124,0.00049589,120]
[354695913,1740624657409,-500.0,0.00049589,120]
[354695914,1740624657418,-500.0,0.00049589,120]
[354695915,1740624657427,-521.46507677,0.00049589,120]
[354695916,1740624657436,-500.0,0.00049589,120]
[354695917,1740624657445,-500.0,0.00049589,120]
[354695918,1740624657454,-500.0,0.00049589,120]
[354695919,1740624657463,-500.0,0.00049589,120]
[354695920,1740624657472,-500.0,0.00049589,120]
[354695921,1740624657481,-500.0,0.00049589,120]
[354695922,1740624657490,-500.0,0.00049589,120]
[354695923,1740624657499,-541.10809624,0.00049589,120]
[354695924,1740624657508,-500.0,0.00049589,120]
[354695925,1740624657517,-516.24108456,0.00049589,120]
[354695926,1740624657526,-527.73552868,0.00049589,120]
[354695927,1740624657536,-500.0,0.00049589,120]
[354695928,1740624657545,-500.0,0.00049589,120]
[354695929,1740624657554,-500.0,0.00049589,120]
[354695930,1740624657564,-531.52003809,0.00049589,120]
[354695931,1740624657573,-500.0,0.00049589,120]
[354695932,1740624657582,-500.0,0.00049589,120]
[354695933,1740624657591,-532.58235084,0.00049589,120]
[354695934,1740624657602,-546.32013552,0.00049589,120]
[354695935,1740624657614,-500.0,0.00049589,120]
[354695936,1740624657624,-500.0,0.00049589,120]
[354695937,1740624657633,-500.0,0.00049589,120]
[354695938,1740624657643,-500.0,0.00049589,120]
[354695939,1740624657654,-500.0,0.00049589,120]
[354695940,1740624657663,-507.97677222,0.00049589,120]
[354695941,1740624657672,-500.0,0.00049589,120]
[354695942,1740624657681,-547.28137289,0.00049589,120]
[354695943,1740624657691,-500.0,0.00049589,120]
[354695944,1740624657701,-546.95847066,0.00049589,120]
[354695945,1740624657710,-549.98289397,0.00049589,120]
[354695946,1740624657719,-500.0,0.00049589,120]
[354695947,1740624657728,-500.0,0.00049589,120]
[354695948,1740624657737,-500.0,0.00049589,120]
[354695949,1740624657746,-500.0,0.00049589,120]
[354695950,1740624657755,-500.0,0.00049589,120]
[354695951,1740624657765,-528.66024686,0.00049589,120]
[354695952,1740624657774,-483.43301593,0.00049589,120]
[354695953,1740624657784,-546.30128558,0.00049589,120]
[354695954,1740624657794,-511.54217725,0.00049589,120]
[354695955,1740624657803,-500.0,0.00049589,120]
[354695956,1740624657812,-607.38974234,0.00049589,120]
[354695957,1740624657822,-514.71699863,0.00049589,120]
[354695958,1740624657832,-440.44997974,0.00049589,120]
[354695959,1740624657841,-500.0,0.00049589,120]
[354695960,1740624657850,-500.0,0.00049589,120]